bitfinex-derivatives/quotes_SOLF0:USTF0_20220102
["timestamp","ask_amount","ask_price","bid_price","bid_amount"]
[1641096004024,9.93086082,177.57,177.55,3.63997006]
[1641096004225,9.93086082,177.57,177.55,0.63997006]
[1641096004425,31.99747047,177.61,177.59,5.40558589]
[1641096005427,31.99747047,177.61,177.6,0.63997006]
[1641096010033,31.99747047,177.61,177.6,7.006e-05]
[1641096010634,31.99747047,177.61,177.55,5.40688552]
[1641096010834,3.0,177.59,177.55,5.40688552]
[1641096011237,8.85,177.59,177.55,5.40688552]
[1641096011636,3.0,177.58,177.56,0.63999399]
[1641096011836,31.99901608,177.57,177.56,0.63999399]
[1641096012438,34.99901608,177.57,177.55,5.40688552]
[1641096012640,31.99901608,177.57,177.55,5.40688552]
[1641096012840,34.99901608,177.57,177.55,5.40688552]
[1641096013238,31.99901608,177.57,177.55,5.40688552]
[1641096013839,31.99901608,177.56,177.55,5.40688552]
[1641096014339,31.99901608,177.56,177.55,6.04691352]
[1641096015142,31.99901608,177.59,177.55,6.04691352]
[1641096015342,31.99901608,177.59,177.55,12.14191352]
[1641096015541,31.99901608,177.59,177.56,0.640028]
[1641096019044,31.99901608,177.58,177.56,0.640028]
[1641096020247,34.72224081,177.58,177.56,0.640028]
[1641096021047,31.99901608,177.58,177.56,0.640028]
[1641096024050,31.99901608,177.58,177.52,27.31236813]
[1641096024651,31.99901608,177.58,177.52,30.31236813]
[1641096024852,31.99901608,177.58,177.52,27.31236813]
[1641096025051,31.99901608,177.58,177.52,30.31236813]
[1641096025454,31.99901608,177.58,177.53,0.63994692]
[1641096027553,31.99901608,177.58,177.52,0.63994692]
[1641096027754,31.99901608,177.58,177.52,28.30473692]
[1641096028055,31.99901608,177.58,177.53,0.63994692]
[1641096029260,31.99901608,177.59,177.53,0.63994692]
[1641096029459,31.99901608,177.59,177.57,5.40620107]
[1641096030059,31.99901608,177.59,177.55,5.901]
[1641096030563,31.99901608,177.59,177.58,0.63994692]
[1641096031460,31.99901608,177.59,177.56,0.63994692]
[1641096032462,31.99901608,177.58,177.56,0.63994692]
[1641096038374,34.99901608,177.58,177.52,6.48921409]
[1641096038574,27.66479,177.56,177.52,6.48921409]
[1641096038776,59.66380608,177.56,177.52,6.48921409]
[1641096039675,59.66380608,177.56,177.53,0.64004083]
[1641096040076,44.65310163,177.55,177.53,0.64004083]
[1641096040377,44.65310163,177.55,177.54,4.50579017]
[1641096041175,12.65408555,177.55,177.54,4.50579017]
[1641096041377,12.65408555,177.55,177.54,5.145831]
[1641096041976,44.65602803,177.55,177.54,5.145831]
[1641096042376,40.15071449,177.55,177.54,6.86904083]
[1641096043179,32.00194248,177.55,177.54,6.86904083]
[1641096043379,32.00194248,177.57,177.54,6.86904083]
[1641096043980,32.00194248,177.58,177.54,6.86904083]
[1641096044178,32.00194248,177.58,177.55,0.64004083]
[1641096045980,32.00194248,177.59,177.55,0.64004083]
[1641096048484,14.1667201,177.6,177.55,0.64004083]
[1641096048485,11.99737041,177.56,177.55,0.64004083]
[1641096049286,32.00194248,177.59,177.55,0.64004083]
[1641096049685,32.00194248,177.59,177.53,0.64004083]
[1641096050285,11.99770869,177.55,177.53,0.64004083]
[1641096052790,11.99770869,177.55,177.53,28.30483083]
[1641096053388,11.99770869,177.55,177.54,0.64004083]
[1641096054590,11.99770869,177.55,177.54,5.96304083]
[1641096055191,11.99770869,177.56,177.54,5.96304083]
[1641096055791,11.99770869,177.55,177.54,5.96304083]
[1641096055991,11.99770869,177.55,177.54,5.323]
[1641096056995,11.99770869,177.56,177.54,5.323]
[1641096059695,11.99770869,177.56,177.53,27.66479]
[1641096060296,11.99770869,177.56,177.54,6.48865313]
[1641096061296,11.99770869,177.56,177.54,11.54765313]
[1641096062500,11.99770869,177.56,177.54,14.54765313]
[1641096063304,11.99770869,177.56,177.54,11.54765313]
[1641096064104,3.98810564,177.55,177.54,11.54765313]
[1641096064304,8.59010564,177.55,177.54,6.48865313]
[1641096064907,4.602,177.55,177.54,6.48865313]
[1641096065805,11.99770869,177.56,177.54,6.48865313]
[1641096067411,11.99770869,177.58,177.54,6.48865313]
[1641096071216,11.99770869,177.58,177.55,0.63986629]
[1641096074316,11.99770869,177.58,177.55,7.12804973]
[1641096074517,11.99770869,177.58,177.55,7.12802919]
[1641096074921,0.99770869,177.57,177.56,0.63986629]
[1641096079222,9.92396606,177.6,177.56,0.63986629]
[1641096079721,9.92396606,177.6,177.56,7.55686629]
[1641096079926,9.92396606,177.6,177.56,10.55686629]
[1641096080426,9.92396606,177.6,177.57,0.63986629]
[1641096082628,12.64379799,177.6,177.57,0.63986629]
[1641096083529,12.64379799,177.6,177.57,6.79686629]
[1641096084031,15.64379799,177.6,177.58,0.63986629]
[1641096084531,15.64379799,177.6,177.56,0.63986629]
[1641096084731,2.71983193,177.59,177.55,0.72955463]
[1641096085135,2.71983193,177.59,177.54,63.5611]
[1641096085331,11.05783193,177.59,177.54,63.5611]
[1641096085733,8.05783193,177.59,177.54,63.5611]
[1641096085933,2.71983193,177.58,177.54,63.5611]
[1641096086333,2.71983193,177.58,177.55,0.63988463]
[1641096087033,2.71983193,177.59,177.55,0.63988463]
[1641096088234,9.92396606,177.6,177.55,0.63988463]
[1641096088235,44.64574047,177.6,177.55,0.63988463]
[1641096090440,44.64574047,177.6,177.55,8.7480969]
[1641096091140,44.64574047,177.6,177.56,0.63988463]
[1641096096141,44.64574047,177.6,177.59,6.93160182]
[1641096096543,44.64574047,177.6,177.59,7.57148645]
[1641096096843,2.02638433,177.58,177.55,8.10821227]
[1641096097843,2.71983193,177.57,177.55,8.10821227]
[1641096098644,2.71983193,177.57,177.56,0.63990307]
[1641096102852,2.71983193,177.57,177.55,8.10821227]
[1641096104352,41.6721248,177.6,177.55,8.10821227]
[1641096104554,41.6721248,177.6,177.55,14.37021227]
[1641096104853,9.92396606,177.6,177.55,14.37021227]
[1641096105554,11.99669961,177.57,177.55,14.37021227]
[1641096109760,11.99669961,177.58,177.55,14.37021227]
[1641096110363,11.99669961,177.59,177.55,14.37021227]
[1641096116176,11.99669961,177.58,177.55,14.37021227]
[1641096116576,11.99669961,177.58,177.55,8.10821227]
[1641096121085,11.99669961,177.57,177.55,8.10821227]
[1641096124988,11.99669961,177.56,177.55,8.10821227]
[1641096129792,18.52469961,177.56,177.55,8.10821227]
[1641096131399,6.528,177.56,177.55,8.10821227]
[1641096132197,31.99246675,177.57,177.55,8.10821227]
[1641096132398,27.66479,177.59,177.55,8.10821227]
[1641096132399,9.92396606,177.58,177.55,8.10821227]
[1641096133602,41.91643281,177.58,177.55,8.10821227]
[1641096135003,31.99246675,177.57,177.55,8.10821227]
[1641096138206,20.99246675,177.57,177.55,8.10821227]
[1641096138908,24.08339358,177.58,177.55,8.10821227]
[1641096139208,9.92396606,177.58,177.55,8.10821227]
[1641096139910,11.95883166,177.57,177.55,8.10821227]
[1641096140409,9.92396606,177.58,177.55,8.10821227]
[1641096142011,24.08071978,177.6,177.55,8.10821227]
[1641096142713,24.08071978,177.6,177.59,5.40545985]
[1641096144115,24.08071978,177.6,177.58,2.0611157]
[1641096144522,12.64291956,177.61,177.58,2.0611157]
[1641096145019,7.64291956,177.61,177.58,2.0611157]
[1641096145319,2.7189535,177.6,177.58,5.035]
[1641096145818,3.0,177.59,177.58,5.035]
[1641096146418,5.7189535,177.59,177.58,5.035]
[1641096148220,5.7189535,177.59,177.54,31.66341951]
[1641096148922,2.7189535,177.59,177.54,31.66341951]
[1641096149122,11.99656054,177.57,177.54,27.66479]
[1641096150822,11.99656054,177.57,177.56,6.48771693]
[1641096154129,6.99656054,177.57,177.56,6.48771693]
[1641096154332,6.99656054,177.57,177.56,11.98371693]
[1641096156133,9.71551404,177.57,177.56,11.98371693]
[1641096157536,2.7189535,177.57,177.56,11.98371693]
[1641096159336,3.0,177.58,177.56,11.98371693]
[1641096159936,2.7189535,177.57,177.56,11.98371693]
[1641096161441,34.92310237,177.62,177.56,11.98371693]
[1641096161641,31.92310237,177.62,177.56,11.98371693]
[1641096163043,3.0,177.62,177.56,11.98371693]
[1641096163644,3.98982765,177.57,177.56,11.98371693]
[1641096164144,3.0,177.62,177.56,11.98371693]
[1641096164747,59.58789237,177.64,177.56,11.98371693]
[1641096164946,119.63229237,177.64,177.56,11.98371693]
[1641096165344,3.0,177.61,177.56,11.98371693]
[1641096165545,3.0,177.62,177.56,11.98371693]
[1641096166045,41.81310565,177.63,177.56,11.98371693]
[1641096166245,3.0,177.61,177.56,11.98371693]
[1641096166945,9.89000328,177.63,177.56,11.98371693]
[1641096167351,3.0,177.62,177.56,11.98371693]
[1641096167646,3.98958112,177.58,177.56,11.98371693]
[1641096168349,3.98958112,177.57,177.56,11.98371693]
[1641096169852,9.89000328,177.63,177.61,2.49636343]
[1641096170052,3.0,177.62,177.61,2.49636343]
[1641096170253,12.89000328,177.63,177.57,63.5204]
[1641096170451,9.89000328,177.63,177.57,69.3514]
[1641096171452,9.89000328,177.63,177.57,97.01619]
[1641096172254,4.89000328,177.63,177.57,102.64238557]
[1641096173256,27.66479,177.64,177.57,102.64238557]
[1641096175862,27.66479,177.64,177.57,106.64238557]
[1641096177061,19.92310237,177.68,177.63,3.0]
[1641096178167,19.92310237,177.68,177.62,3.0]
[1641096178363,41.80335174,177.72,177.64,3.0]
[1641096178763,41.80335174,177.72,177.62,59.5762]
[1641096179267,27.66479,177.72,177.62,59.5762]
[1641096179665,27.66479,177.72,177.62,62.5762]
[1641096182569,30.66479,177.72,177.62,59.5762]
[1641096183469,27.66479,177.72,177.62,62.5762]
[1641096184873,33.88879,177.72,177.62,62.5762]
[1641096185274,11.89767893,177.7,177.62,62.5762]
[1641096185474,11.89767893,177.7,177.62,59.5762]
[1641096185875,11.89767893,177.7,177.62,62.5762]
[1641096186375,11.89767893,177.7,177.62,59.5762]
[1641096186577,11.89767893,177.7,177.62,62.5762]
[1641096187278,11.89767893,177.64,177.62,62.5762]
[1641096187476,11.89767893,177.64,177.62,3.0]
[1641096188078,11.89767893,177.64,177.61,27.66479]
[1641096188477,16.86467893,177.64,177.6,7.78348246]
[1641096189280,11.89767893,177.62,177.6,7.78348246]
[1641096190179,11.89767893,177.63,177.6,7.78348246]
[1641096195792,11.89767893,177.63,177.62,6.48540296]
[1641096198494,11.89767893,177.63,177.6,7.78348246]
[1641096198893,11.89767893,177.63,177.57,5.62619557]
[1641096203803,11.89767893,177.63,177.57,12.11361465]
[1641096204903,14.60417479,177.63,177.57,12.11361465]
[1641096205104,11.89767893,177.62,177.57,12.11361465]
[1641096205607,39.56246893,177.62,177.57,12.11361465]
[1641096206005,39.56246893,177.62,177.57,5.71635048]
[1641096206207,2.70649586,177.61,177.57,5.71635048]
[1641096206407,2.70649586,177.61,177.55,65.1913]
[1641096209514,14.60417479,177.61,177.55,65.1913]
[1641096211216,11.89767893,177.61,177.55,65.1913]
[1641096211615,11.89767893,177.61,177.6,6.48645967]
[1641096212716,14.60417479,177.61,177.6,6.48645967]
[1641096213118,90.07219063,177.65,177.6,6.48645967]
[1641096213119,12.59049218,177.64,177.6,6.48645967]
[1641096213317,44.47708281,177.64,177.6,6.48645967]
[1641096213820,27.66479,177.62,177.6,6.48645967]
[1641096214021,39.6341141,177.62,177.6,6.48645967]
[1641096215520,2.70649586,177.61,177.6,6.48645967]
[1641096216524,11.9693241,177.62,177.6,6.48645967]
[1641096216919,39.6341141,177.62,177.6,6.48645967]
[1641096217523,11.9693241,177.62,177.6,6.48645967]
[1641096217922,2.70649586,177.61,177.6,6.48645967]
[1641096218322,11.9693241,177.62,177.6,6.48645967]
[1641096219429,12.58956373,177.63,177.6,6.48645967]
[1641096222938,27.66479,177.63,177.6,6.48645967]
[1641096223437,2.70649586,177.62,177.6,6.48645967]
[1641096223637,12.58956373,177.62,177.6,6.48645967]
[1641096225038,11.98400911,177.61,177.6,6.48645967]
[1641096225641,12.58956373,177.62,177.6,6.48645967]
[1641096230842,11.9840516,177.61,177.6,6.48645967]
[1641096232647,18.7870516,177.61,177.6,6.48645967]
[1641096233051,46.4518416,177.61,177.55,66.18620438]
[1641096233648,11.9840516,177.59,177.55,62.1913]
[1641096233851,11.9840516,177.59,177.53,3.99490438]
[1641096234451,3.0,177.58,177.53,3.99490438]
[1641096234650,12.58956373,177.6,177.52,3.99490438]
[1641096234651,11.9840516,177.57,177.52,3.99490438]
[1641096234850,16.8340516,177.57,177.52,3.99490438]
[1641096235049,27.66479,177.54,177.52,3.99490438]
[1641096235653,14.69054746,177.53,177.47,3.99490438]
[1641096236651,3.99649785,177.49,177.48,3.99490438]
[1641096238654,3.99649785,177.49,177.48,6.99490438]
[1641096239054,14.69054746,177.53,177.48,6.99490438]
[1641096239055,14.68704531,177.53,177.48,34.65969438]
[1641096239255,31.88659063,177.57,177.52,5.62762036]
[1641096239855,9.90716196,177.59,177.52,5.62762036]
[1641096240456,9.90716196,177.6,177.52,5.62762036]
[1641096240657,73.85166196,177.6,177.52,5.62762036]
[1641096240856,70.85166196,177.6,177.5,63.2047]
[1641096241056,102.73825259,177.6,177.5,63.2047]
[1641096241557,41.79375259,177.59,177.5,63.2047]
[1641096243862,41.79375259,177.59,177.5,66.2047]
[1641096244363,9.90716196,177.59,177.5,66.2047]
[1641096244562,9.90716196,177.59,177.5,63.2047]
[1641096245365,37.57195196,177.59,177.5,93.86949]
[1641096245565,37.57195196,177.59,177.5,90.86949]
[1641096246168,9.90716196,177.58,177.5,90.86949]
[1641096246971,9.90716196,177.58,177.52,3.0]
[1641096247170,9.90716196,177.58,177.52,9.679]
[1641096247669,9.90716196,177.58,177.52,6.679]
[1641096248471,9.90716196,177.58,177.5,90.86949]
[1641096249470,9.90716196,177.58,177.53,6.48882647]
[1641096250370,37.57195196,177.59,177.53,6.48882647]
[1641096250772,37.57195196,177.59,177.58,5.40589644]
[1641096251174,27.66479,177.59,177.58,5.40589644]
[1641096252075,31.88659063,177.61,177.58,5.40589644]
[1641096253075,34.88659063,177.61,177.58,5.40589644]
[1641096253276,31.88659063,177.61,177.58,5.40589644]
[1641096253674,31.88659063,177.6,177.58,5.40589644]
[1641096254174,31.88659063,177.61,177.58,5.40589644]
[1641096254875,34.88659063,177.61,177.58,5.40589644]
[1641096255477,31.88659063,177.6,177.58,5.40589644]
[1641096257180,34.88659063,177.6,177.58,5.40589644]
[1641096257579,31.88659063,177.6,177.58,5.40589644]
[1641096259981,34.88659063,177.61,177.58,5.40589644]
[1641096260583,31.88659063,177.61,177.58,5.40589644]
[1641096262386,59.55138063,177.61,177.58,5.40589644]
[1641096263686,54.14682952,177.61,177.58,6.48688601]
[1641096264086,26.48203952,177.61,177.58,6.48688601]
[1641096264989,59.913,177.65,177.58,6.48688601]
[1641096266292,3.0,177.64,177.58,0.08971416]
[1641096266494,30.66479,177.64,177.54,59.7273]
[1641096266694,3.0,177.63,177.54,59.7273]
[1641096266896,54.70237968,177.64,177.54,59.7273]
[1641096267498,9.90062907,177.63,177.54,59.7273]
[1641096268602,9.90062907,177.63,177.55,27.66479]
[1641096270000,11.99552016,177.59,177.55,27.66479]
[1641096274415,11.99552016,177.62,177.55,27.66479]
[1641096280816,11.99552016,177.62,177.58,3.0]
[1641096281017,11.99552016,177.62,177.57,6.351]
[1641096282816,11.99552016,177.62,177.59,27.66479]
[1641096284723,14.69927942,177.63,177.59,27.66479]
[1641096287730,11.99552016,177.61,177.59,27.66479]
[1641096288430,11.99552016,177.62,177.59,27.66479]
[1641096290731,11.99552016,177.62,177.57,4.257]
[1641096290934,11.99552016,177.62,177.58,7.78460027]
[1641096291232,11.99552016,177.62,177.6,27.66479]
[1641096294135,14.69927942,177.64,177.6,27.66479]
[1641096300044,9.69927942,177.64,177.6,30.66479]
[1641096300249,5.69927942,177.64,177.6,27.66479]
[1641096300446,59.913,177.65,177.6,27.66479]
[1641096300853,31.87904289,177.68,177.6,30.66479]
[1641096301146,31.87904289,177.68,177.61,3.0]
[1641096301347,31.87904289,177.69,177.66,27.66479]
[1641096302147,41.76149949,177.71,177.66,27.66479]
[1641096304450,41.76149949,177.71,177.61,74.15235381]
[1641096305051,31.87904289,177.7,177.62,6.99275381]
[1641096305453,31.87904289,177.7,177.67,27.66479]
[1641096306552,41.76149949,177.71,177.67,27.66479]
[1641096308653,58.9674,177.72,177.67,27.66479]
[1641096309152,58.9674,177.72,177.65,59.732]
[1641096311358,58.9674,177.72,177.67,27.66479]
[1641096312358,58.9674,177.72,177.7,6.4828312]
[1641096312557,3.0,177.75,177.7,6.4828312]
[1641096313258,12.83247804,177.75,177.7,6.4828312]
[1641096314561,44.71152093,177.75,177.7,6.4828312]
[1641096317665,31.87904289,177.72,177.7,6.4828312]
[1641096318264,31.87904289,177.73,177.7,6.4828312]
[1641096325875,28.87904289,177.73,177.7,6.4828312]
[1641096326075,28.87904289,177.73,177.72,6.48210245]
[1641096326475,28.87904289,177.73,177.72,0.08796564]
[1641096326676,3.02041069,177.7,177.69,5.511]
[1641096326875,3.02041069,177.7,177.64,5.847]
[1641096327475,3.02041069,177.7,177.67,27.66479]
[1641096328378,3.02041069,177.7,177.68,3.0]
[1641096328578,0.02041069,177.7,177.67,30.66479]
[1641096330081,0.02041069,177.7,177.67,3.0]
[1641096330784,11.98777022,177.7,177.67,3.0]
[1641096331481,11.98777022,177.7,177.67,30.66479]
[1641096331883,11.98777022,177.7,177.67,3.0]
[1641096333384,11.98777022,177.7,177.67,30.66479]
[1641096334787,11.98777022,177.7,177.67,3.0]
[1641096335387,11.98777022,177.7,177.68,3.0]
[1641096337588,11.98777022,177.7,177.69,12.11207747]
[1641096342193,11.98777022,177.7,177.65,27.66479]
[1641096342392,16.67477022,177.7,177.65,27.66479]
[1641096342596,4.70741069,177.7,177.65,31.65805224]
[1641096343294,11.96735953,177.67,177.65,27.66479]
[1641096344193,11.96735953,177.68,177.65,27.66479]
[1641096344593,2.70380022,177.69,177.65,27.66479]
[1641096344594,11.96735953,177.66,177.65,27.66479]
[1641096345199,11.96735953,177.66,177.62,71.0839592]
[1641096345396,11.96735953,177.66,177.62,9.6175592]
[1641096345997,11.96735953,177.66,177.64,27.66479]
[1641096346799,11.96735953,177.67,177.64,27.66479]
[1641096349001,11.96735953,177.67,177.62,9.6175592]
[1641096349202,11.96735953,177.68,177.62,5.62429696]
[1641096350005,11.96735953,177.68,177.64,27.66479]
[1641096350200,3.98683415,177.65,177.64,27.66479]
[1641096350802,3.98683415,177.66,177.64,27.66479]
[1641096351605,3.98683415,177.67,177.64,27.66479]
[1641096352105,3.98683415,177.67,177.65,27.66479]
[1641096352704,13.6579939,177.72,177.65,27.66479]
[1641096352904,7.6579939,177.72,177.65,32.08979]
[1641096354306,7.6579939,177.72,177.65,27.66479]
[1641096355706,57.7575,177.73,177.65,27.66479]
[1641096356108,57.7575,177.73,177.68,27.66479]
[1641096358612,57.7575,177.73,177.66,62.5376]
[1641096360012,9.88352062,177.72,177.66,62.5376]
[1641096360215,9.88352062,177.72,177.68,27.66479]
[1641096360713,9.88352062,177.72,177.66,62.5376]
[1641096362014,57.7575,177.73,177.66,62.5376]
[1641096362216,57.7575,177.73,177.68,27.66479]
[1641096363115,9.88302829,177.72,177.68,27.66479]
[1641096365019,4.88302829,177.72,177.71,7.77866259]
[1641096365215,31.97503181,177.76,177.71,7.77866259]
[1641096366317,31.97503181,177.76,177.71,10.77866259]
[1641096366518,31.97503181,177.76,177.74,27.66479]
[1641096366919,31.97503181,177.77,177.74,27.66479]
[1641096367320,9.35558195,177.78,177.76,3.0]
[1641096367520,31.95933281,177.79,177.77,3.0]
[1641096367718,31.95933281,177.79,177.76,3.0]
[1641096367918,31.95933281,177.79,177.77,3.0]
[1641096368419,31.95933281,177.79,177.78,27.66479]
[1641096368723,42.32162279,177.84,177.78,27.66479]
[1641096368920,74.85423019,177.85,177.78,27.66479]
[1641096369121,14.11003019,177.84,177.78,27.66479]
[1641096370724,60.7442,177.85,177.78,27.66479]
[1641096372527,60.7442,177.85,177.82,6.47833362]
[1641096372727,0.08,177.86,177.82,6.47833362]
[1641096374031,14.10526592,177.89,177.82,9.47833362]
[1641096374230,14.10526592,177.89,177.87,6.47650577]
[1641096375131,61.6361,177.93,177.87,6.47650577]
[1641096375736,14.10526592,177.92,177.87,6.47650577]
[1641096376335,20.08326592,177.92,177.87,6.47650577]
[1641096379336,14.10526592,177.92,177.87,6.47650577]
[1641096382843,14.10526592,177.92,177.87,34.14129577]
[1641096385249,14.10526592,177.92,177.9,6.47542593]
[1641096386347,3.0,177.94,177.87,34.14129577]
[1641096386747,3.0,177.94,177.87,27.75332259]
[1641096386948,26.96680284,177.94,177.87,27.75332259]
[1641096387248,26.96680284,177.94,177.87,27.66479]
[1641096388351,31.93998525,177.91,177.87,27.66479]
[1641096389251,11.97698174,177.88,177.87,27.66479]
[1641096393555,11.97698174,177.89,177.87,27.66479]
[1641096398060,11.97698174,177.89,177.81,5.61829316]
[1641096398359,18.14498174,177.89,177.81,5.61829316]
[1641096398762,11.97698174,177.87,177.82,1.29331225]
[1641096399760,11.97698174,177.87,177.81,33.28308316]
[1641096399960,11.97698174,177.85,177.81,33.28308316]
[1641096400162,18.12998174,177.85,177.81,33.28308316]
[1641096400860,2.69969508,177.84,177.81,33.28308316]
[1641096401562,11.97698174,177.85,177.82,1.29332494]
[1641096401760,11.97698174,177.88,177.82,1.29332494]
[1641096402463,11.97698174,177.87,177.82,1.29332494]
[1641096404962,11.97698174,177.88,177.82,1.29332494]
[1641096405162,11.97698174,177.88,177.84,27.66479]
[1641096406164,11.97698174,177.87,177.84,27.66479]
[1641096409471,11.97698174,177.86,177.84,27.66479]
[1641096409968,6.97698174,177.86,177.84,27.66479]
[1641096410169,2.69917843,177.85,177.84,27.66479]
[1641096410672,6.97698174,177.86,177.84,27.66479]
[1641096411672,6.97698174,177.86,177.84,31.87679]
[1641096414477,12.56071535,177.89,177.84,35.8694414]
[1641096416477,12.56071535,177.89,177.84,8.2046514]
[1641096417582,12.56071535,177.89,177.85,27.66479]
[1641096418079,6.56071535,177.89,177.85,27.66479]
[1641096418383,2.69917843,177.88,177.85,27.66479]
[1641096418983,6.56071535,177.89,177.85,27.66479]
[1641096420085,6.56071535,177.89,177.87,7.77188484]
[1641096423089,2.69917843,177.89,177.87,7.77188484]
[1641096424090,60.69167843,177.92,177.87,7.77188484]
[1641096424689,2.69917843,177.91,177.87,7.77188484]
[1641096432199,2.69917843,177.91,177.9,6.47525704]
[1641096433001,31.93998525,177.93,177.91,3.77579801]
[1641096433301,31.93998525,177.93,177.9,6.47525704]
[1641096434002,27.93998525,177.93,177.9,6.47525704]
[1641096434703,30.66479,177.94,177.9,6.47525704]
[1641096435104,27.66479,177.94,177.9,6.47525704]
[1641096436609,14.06706228,177.95,177.9,6.47525704]
[1641096438311,23.92265497,177.95,177.9,6.47525704]
[1641096438513,23.92265497,177.95,177.93,6.47411834]
[1641096439013,23.92265497,177.95,177.9,6.47525704]
[1641096439816,23.92265497,177.95,177.86,59.8494]
[1641096440016,23.92265497,177.95,177.86,87.51419]
[1641096440419,23.92265497,177.95,177.87,3.0]
[1641096440718,11.97561081,177.89,177.86,87.51419]
[1641096441618,11.97561081,177.89,177.86,30.66479]
[1641096441818,11.97561081,177.89,177.86,27.66479]
[1641096442025,11.97561081,177.89,177.85,3.9926514]
[1641096442422,11.97561081,177.88,177.83,68.0768514]
[1641096443121,11.97561081,177.87,177.83,68.0768514]
[1641096443923,11.97561081,177.87,177.83,64.0842]
[1641096444325,11.97561081,177.87,177.83,70.56206584]
[1641096444722,11.97561081,177.86,177.83,70.56206584]
[1641096446725,11.97561081,177.86,177.83,9.47786584]
[1641096446927,11.97561081,177.86,177.83,3.08968016]
[1641096447126,11.97561081,177.85,177.81,5.61829316]
[1641096447829,11.97561081,177.85,177.81,9.610947]
[1641096448333,3.99265271,177.82,177.81,9.610947]
[1641096449032,11.97561081,177.86,177.81,9.610947]
[1641096449232,11.97561081,177.85,177.81,9.610947]
[1641096452235,11.97561081,177.85,177.81,5.61829316]
[1641096452435,3.98241887,177.83,177.81,5.61829316]
[1641096453536,11.97561081,177.85,177.81,9.610947]
[1641096454236,11.97561081,177.85,177.83,7.77348515]
[1641096455039,73.27691081,177.87,177.83,11.76613899]
[1641096455841,73.27691081,177.87,177.83,16.68113899]
[1641096460051,73.27691081,177.87,177.83,11.76613899]
[1641096461454,73.27691081,177.87,177.83,7.77348515]
[1641096461853,70.27691081,177.87,177.83,7.77348515]
[1641096462656,11.97561081,177.86,177.82,3.99265384]
[1641096462856,16.77461081,177.86,177.82,3.99265384]
[1641096463056,19.77461081,177.86,177.79,27.66479]
[1641096463457,3.0,177.85,177.79,27.66479]
[1641096463856,3.0,177.85,177.76,90.23389]
[1641096464056,39.74048302,177.86,177.76,90.23389]
[1641096464257,11.98090763,177.81,177.76,62.5691]
[1641096465256,11.98090763,177.81,177.73,33.28576749]
[1641096465858,11.98090763,177.81,177.74,63.0393]
[1641096467260,11.98090763,177.81,177.74,66.0393]
[1641096468162,11.98090763,177.81,177.74,63.0393]
[1641096468461,11.98090763,177.83,177.75,27.42380807]
[1641096468862,11.98090763,177.83,177.77,27.66479]
[1641096470662,58.3799,177.84,177.77,27.66479]
[1641096471464,11.98090763,177.85,177.77,33.28434606]
[1641096472268,11.98090763,177.85,177.77,36.28434606]
[1641096472466,11.98090763,177.88,177.77,48.25995687]
[1641096472666,11.98090763,177.88,177.78,58.9689]
[1641096472866,11.98090763,177.88,177.84,6.47750822]
[1641096473768,14.67220641,177.88,177.84,6.47750822]
[1641096477669,11.98090763,177.87,177.84,6.47750822]
[1641096481574,11.98090763,177.87,177.85,6.47703243]
[1641096481772,39.64569763,177.87,177.85,6.47703243]
[1641096482072,27.66479,177.87,177.85,6.47703243]
[1641096483175,12.52422931,177.86,177.85,6.47703243]
[1641096483774,11.97705238,177.87,177.85,6.47703243]
[1641096489882,2.69129878,177.88,177.85,6.47703243]
[1641096492985,60.23389878,177.89,177.85,6.47703243]
[1641096493285,53.75821161,177.89,177.84,6.47750822]
[1641096498794,49.75821161,177.89,177.84,6.47750822]
[1641096500704,11.97705238,177.88,177.84,6.47750822]
[1641096501206,61.73526399,177.89,177.84,6.47750822]
[1641096502108,11.97705238,177.88,177.84,9.47750822]
[1641096502310,11.97705238,177.88,177.85,27.66479]
[1641096503111,11.97705238,177.9,177.85,27.66479]
[1641096504013,74.38715238,177.91,177.85,27.66479]
[1641096507315,74.38715238,177.91,177.85,21.27822375]
[1641096509222,74.38715238,177.91,177.84,6.47750822]
[1641096510225,74.38715238,177.91,177.86,27.66479]
[1641096520131,11.97705238,177.9,177.86,27.66479]
[1641096520934,8.97705238,177.9,177.86,27.66479]
[1641096522939,62.4101,177.91,177.86,27.66479]
[1641096523638,62.4101,177.91,177.88,3.99116577]
[1641096523837,3.0,177.94,177.88,3.99116577]
[1641096525139,12.84829052,177.94,177.86,27.66479]
[1641096529542,12.84829052,177.94,177.87,3.99116577]
[1641096532248,12.84829052,177.94,177.86,31.65595577]
[1641096532447,3.0,177.93,177.86,31.65595577]
[1641096533246,2.69571452,177.92,177.86,31.65595577]
[1641096536657,2.69571452,177.92,177.86,3.99116577]
[1641096538057,2.69571452,177.93,177.86,3.99116577]
[1641096538459,27.66479,177.92,177.86,3.99116577]